fUSD/lending_fUSD_20240408
["ID","MTS","AMOUNT","RATE_DAILY","PERIOD"]
[321912859,1712616644340,-150.0,0.00024353,2]
[321912860,1712616644350,-7500.0,0.00024357,2]
[321912861,1712616644360,-471.040907,0.00024359,2]
[321912862,1712616644369,-151.08603874,0.00024359,2]
[321912863,1712616644379,-150.0,0.00024359,2]
[321912864,1712616644389,-6178.71145579,0.00024359,2]
[321912865,1712616644399,-150.0,0.00024367,2]
[321912866,1712616644409,-471.040907,0.00024369,2]
[321912867,1712616644421,-150.0,0.00024372,2]
[321912868,1712616644430,-150.0,0.00024373,2]
[321912869,1712616644442,-471.040907,0.00024379,2]
[321912870,1712616644451,-471.040907,0.00024389,2]
[321912871,1712616644460,-150.0,0.00024393,2]
[321912872,1712616644469,-189.36,0.00024394,2]
[321912873,1712616644479,-1500.0,0.00024396,2]
[321912874,1712616644489,-471.040907,0.00024399,2]
[321912875,1712616644499,-246.2,0.000244,2]
[321912876,1712616644509,-507.05,0.00024403,2]
[321912877,1712616644519,-150.0,0.00024408,2]
[321912878,1712616644529,-471.040907,0.00024409,2]
[321912879,1712616644539,-1500.0,0.00024423,2]
[321912880,1712616644548,-1687.64332949,0.00024423,2]
[321912881,1712616644558,-157.00060788,0.00024423,2]
[321912882,1712616644567,-296.58147512,0.00024423,2]
[321912883,1712616644577,-329.77078868,0.00024423,9]
[321912884,1712616644586,-1500.0,0.00024445,2]
[321912885,1712616644596,-471.040906,0.00024449,2]
[321912886,1712616644606,-150.0,0.0002445,2]
[321912887,1712616644615,-923525.78912914,0.00024457,2]
[321912888,1712616644624,-1000.0,0.00024459,2]
[321912889,1712616644634,-500.0,0.00024459,2]
[321912890,1712616644643,-150.0,0.00024459,2]
[321912891,1712616644652,-150.0,0.0002446,2]
[321912892,1712616644662,-150.0,0.00024475,2]
[321912893,1712616644672,-150.0,0.00024475,2]
[321912894,1712616644681,-10000.0,0.00024484,2]
[321912895,1712616644691,-150.0,0.00024489,4]
[321912896,1712616644701,-3326.875111,0.000245,2]
[321912897,1712616644711,-393.080236,0.000245,2]
[321912898,1712616644721,-150.0,0.000245,2]
[321912899,1712616644730,-13657.41576619,0.00024502,2]
[321912900,1712616644740,-150.0,0.00024502,2]
[321912901,1712616644750,-271.50371471,0.00024503,2]
[321912902,1712616644760,-10908.94901206,0.00024503,2]
[321912903,1712616644769,-213.45303589,0.00024503,2]
[321912904,1712616644778,-1745.21056213,0.00024504,2]
[321912905,1712616644787,-2227.31303,0.00024504,2]
[321912906,1712616644797,-10908.94901206,0.00024505,2]
[321912907,1712616644807,-4953.0908996,0.00024506,2]
[321912908,1712616644816,-13657.41576619,0.00024506,2]
[321912909,1712616644826,-213.45303589,0.00024506,2]
[321912910,1712616644835,-152.33405659,0.00024507,2]
[321912911,1712616644845,-19639.02598709,0.00024507,2]
[321912912,1712616644854,-238149.86111113,0.00024508,5]
[321912944,1712616645583,-33950.33155087,0.00024508,5]
[321912945,1712616645688,-600.64996105,0.00024508,5]
[321912946,1712616645700,-1874.97998429,0.00024508,5]
[321912947,1712616646978,-150.0,0.00023555,2]
[321912948,1712616646988,-150.0,0.00023585,2]
[321912949,1712616646997,-150.0,0.000237,2]
[321912950,1712616647006,-132.05584628,0.00023702,2]
[321912951,1712616649123,409.24564789,0.00017594,2]
[321912954,1712616681145,452.96604982,0.00017594,2]
[321912955,1712616686674,318.92708614,0.00017594,2]
[321912956,1712616691354,343.78021361,0.00017594,2]
[321912957,1712616702480,427.82806159,0.00017594,2]
[321912958,1712616703988,487.61,0.00024329,15]
[321912968,1712617183434,457.13,0.00024329,15]
[321913062,1712617831743,-236.98871763,0.00018105,2]
[321913063,1712617831754,-236.98871763,0.00018105,2]
[321913064,1712617831766,-236.98871763,0.00018105,2]
[321913065,1712617831777,-236.98871763,0.00018105,2]
[321913066,1712617831788,-236.98871763,0.00018105,2]
[321913067,1712617831801,-192.30060608,0.00018106,2]
[321913068,1712617831812,-748.27539944,0.00018106,2]
[321913069,1712617831823,-754.48040633,0.00018107,2]
[321913070,1712617831837,-608.58529757,0.00018107,2]
[321913071,1712617831858,-178.6942961,0.00018107,2]
[321913072,1712617831868,-650.9,0.00018109,2]
[321913073,1712617831880,-290.6053586,0.00018898,2]
[321913074,1712617831891,-214.13828135,0.00019923,2]
[321913075,1712617831920,-111.35171865,0.00019923,2]
[321913076,1712617831931,-500.0,0.00019985,2]
[321913077,1712617831942,-164.60410299,0.0002,2]
[321913078,1712617831954,-500.0,0.00020026,2]
[321913079,1712617831965,-194.94,0.00020154,2]
[321913080,1712617831976,-163.78,0.00020239,2]
[321913081,1712617831987,-384.0,0.00020267,2]
[321913082,1712617831999,-650.9,0.00020373,2]
[321913083,1712617832010,-150.0,0.000205,2]
[321913084,1712617832021,-150.0,0.00020799,2]
[321913085,1712617832032,-1000.0,0.000208,2]
[321913086,1712617832043,-2348.4024026,0.000208,2]
[321913087,1712617832054,-8309.2902,0.000208,2]
[321913088,1712617832066,-2074.26827577,0.000209,2]
[321913089,1712617832158,-469.17,0.000209,2]
[321913117,1712617837987,-719.57,0.000209,2]
[321913136,1712617838111,-119567.24547293,0.000209,2]
[321913138,1712617838121,-101127.2403,0.000209,2]
[321913140,1712617838130,-10816.5023,0.000209,2]
[321913142,1712617838139,-151.25194139,0.000209,2]
[321913144,1712617838148,-10033.04772918,0.000209,2]
[321913146,1712617838157,-7500.0,0.000209,2]
[321913147,1712617838166,-323.40851371,0.000209,2]
[321913149,1712617838175,-471.040907,0.00020919,2]
[321913152,1712617838185,-471.040907,0.00020929,2]
[321913153,1712617838194,-471.040907,0.00020939,2]
[321913156,1712617838205,-471.040907,0.00020949,2]
[321913158,1712617838214,-471.040907,0.00020959,2]
[321913159,1712617838225,-471.040907,0.00020969,2]
[321913161,1712617838235,-471.040907,0.00020979,2]
[321913163,1712617838244,-471.040907,0.00020989,2]
[321913166,1712617838254,-22249.98517243,0.0002099,2]
[321913168,1712617838263,-471.040907,0.00020999,2]
[321913170,1712617838272,-1047563.9512687,0.00021,2]
[321913176,1712617838319,-3091.04996482,0.00021,2]
[321913178,1712617838331,-20817.67136778,0.00021,2]
[321913286,1712617840573,-752028.34211567,0.00021,2]
[321913287,1712617840583,-714.74834698,0.00021,2]
[321913288,1712617840592,-645687.28035913,0.00021,2]
[321913289,1712617840601,-1241.18,0.00021,2]
[321913290,1712617840612,-645.45,0.00021,2]
[321913291,1712617840621,-150.0,0.00021,2]
[321913292,1712617840632,-550.0,0.00021,3]
[321913293,1712617840642,-200.0,0.00021096,2]
[321913294,1712617840652,-151.25194137,0.00021199,2]
[321913295,1712617840661,-163.78,0.00021294,2]
[321913296,1712617840670,-2348.4024026,0.000214,2]
[321913297,1712617840680,-10033.04772914,0.00021457,2]
[321913298,1712617840689,-151.25194137,0.00021497,2]
[321913299,1712617840698,-150.0,0.000215,2]
[321913300,1712617840709,-323.40851363,0.00021512,2]
[321913301,1712617840718,-151.25194137,0.00021796,2]
[321913302,1712617840727,-250.0,0.00021918,2]
[321913303,1712617840737,-250.0,0.00021918,2]
[321913304,1712617840746,-30000.0,0.00022,2]
[321913305,1712617840754,-783.43698561,0.00022,2]
[321913306,1712617840764,-640.60613676,0.00022,2]
[321913307,1712617840773,-150.0,0.00022,2]
[321913308,1712617840782,-2348.4024026,0.00022,2]
[321913309,1712617840792,-10033.04772914,0.00022013,2]
[321913310,1712617840803,-151.25194137,0.00022095,2]
[321913311,1712617840814,-323.40851363,0.00022125,2]
[321913312,1712617840824,-151.25194137,0.00022394,2]
[321913313,1712617840833,-150.0,0.00022414,2]
[321913314,1712617840842,-150.0,0.00022414,2]
[321913315,1712617840852,-150.0,0.00022414,2]
[321913316,1712617840860,-150.0,0.00022414,2]
[321913317,1712617840870,-150.0,0.000225,2]
[321913318,1712617840880,-5237.99014585,0.00022537,2]
[321913319,1712617840889,-1333.7947476,0.00022563,2]
[321913320,1712617840899,-10033.04772914,0.0002257,2]
[321913321,1712617840908,-2348.4024026,0.000226,2]
[321913322,1712617840917,-650.9,0.00022637,2]
[321913323,1712617840927,-325.49,0.00022663,2]
[321913324,1712617840936,-151.25194137,0.00022692,2]
[321913325,1712617840945,-150.0,0.00022717,2]
[321913326,1712617840955,-150.0,0.00022732,2]
[321913327,1712617840964,-323.40851363,0.00022737,2]
[321913328,1712617840973,-500.0,0.0002278,2]
[321913329,1712617840982,-600.0,0.0002278,2]
[321913330,1712617840991,-500.0,0.0002278,2]
[321913331,1712617841000,-500.0,0.0002278,2]
[321913332,1712617841009,-384.0,0.000228,2]
[321913333,1712617841020,-3238.0,0.000228,2]
[321913334,1712617841032,-150.0,0.00022829,4]
[321913335,1712617841042,-150.0,0.00022956,2]
[321913336,1712617841051,-151.25194137,0.00022991,2]
[321913337,1712617841064,-306.97533583,0.00023,2]
[321913338,1712617841073,-150.0,0.00023,2]
[321913339,1712617841083,-600.0,0.00023,3]
[321913340,1712617841094,-150.0,0.00023021,2]
[321913341,1712617841105,-150.0,0.00023049,2]
[321913342,1712617841116,-150.0,0.00023069,2]
[321913343,1712617841125,-645.45,0.000231,2]
[321913344,1712617841136,-150.0,0.00023102,2]
[321913345,1712617841146,-10033.04772914,0.00023127,2]
[321913346,1712617841156,-616.0,0.0002313,2]
[321913347,1712617841166,-150.642,0.00023155,2]
[321913348,1712617841175,-718.099,0.00023155,2]
[321913349,1712617841183,-973.52,0.00023155,2]
[321913350,1712617841192,-1594.057,0.00023155,2]
[321913351,1712617841201,-539.0,0.00023155,2]
[321913352,1712617841210,-1228.0,0.00023155,2]
[321913353,1712617841220,-1259.0,0.00023155,2]
[321913355,1712617841229,-607.0,0.00023155,2]
[321913357,1712617841238,-164.949,0.00023155,2]
[321913359,1712617841247,-806.0,0.00023155,2]
[321913360,1712617841256,-1944.0,0.00023155,2]
[321913361,1712617841265,-3037.0,0.00023155,2]
[321913362,1712617841275,-1139.0,0.00023155,2]
[321913363,1712617841283,-398.0,0.00023155,2]
[321913364,1712617841292,-1469.0,0.00023155,2]
[321913365,1712617841301,-2435.0,0.00023155,2]
[321913366,1712617841310,-1634.0,0.00023155,2]
[321913367,1712617841319,-214.0,0.00023155,2]
[321913368,1712617841327,-414.0,0.00023155,2]
[321913369,1712617841336,-442.0,0.00023155,2]
[321913370,1712617841345,-5707.0,0.00023155,2]
[321913371,1712617841354,-4793.0,0.00023155,2]
[321913372,1712617841363,-2461.0,0.00023155,2]
[321913373,1712617841373,-37544.0,0.00023155,2]
[321913374,1712617841382,-1313.0,0.00023155,2]
[321913375,1712617841391,-1052.0,0.00023155,2]
[321913376,1712617841401,-1265.77,0.00023167,2]
[321913377,1712617841410,-2348.4024026,0.000232,2]
[321913378,1712617841419,-150.0,0.00023244,4]
[321913379,1712617841428,-150.0,0.00023244,4]
[321913380,1712617841437,-151.25194137,0.0002329,2]
[321913381,1712617841446,-150.0,0.0002329,2]
[321913382,1712617841456,-150.0,0.00023293,2]
[321913383,1712617841465,-600.0,0.00023328,2]
[321913384,1712617841474,-323.40851363,0.00023349,2]
[321913385,1712617841483,-150.0,0.00023462,2]
[321913386,1712617841492,-150.0,0.00023486,2]
[321913387,1712617841500,-150.0,0.000235,2]
[321913388,1712617841509,-150.0,0.00023535,2]
[321913389,1712617841519,-150.0,0.00023554,2]
[321913390,1712617841527,-151.25194137,0.00023589,2]
[321913391,1712617841536,-1241.18,0.000236,2]
[321913392,1712617841545,-150.0,0.00023641,2]
[321913393,1712617841554,-168.65,0.00023646,2]
[321913394,1712617841563,-150.0,0.00023659,4]
[321913395,1712617841572,-150.0,0.00023659,4]
[321913396,1712617841581,-150.0,0.00023666,2]
[321913397,1712617841590,-150.0,0.0002367,2]
[321913398,1712617841599,-10033.04772914,0.00023683,2]
[321913399,1712617841608,-1134.43797734,0.00023685,2]
[321913400,1712617841617,-17.94415372,0.00023702,2]
[321913401,1712617841626,-150.0,0.0002371,2]
[321913402,1712617841635,-150.0,0.0002374,2]
[321913403,1712617841644,-2342.41357319,0.00023799,2]
[321913404,1712617841653,-338.9300751,0.00023799,2]
[321913405,1712617841663,-2348.4024026,0.00023801,2]
[321913406,1712617841672,-500.0,0.00023876,2]
[321913407,1712617841682,-500.0,0.00023876,2]
[321913408,1712617841691,-500.0,0.00023876,2]
[321913409,1712617841701,-600.0,0.00023876,2]
[321913410,1712617841710,-151.25194137,0.00023887,2]
[321913411,1712617841720,-1000.0,0.000239,2]
[321913412,1712617841729,-150.0,0.00023914,2]
[321913413,1712617841739,-12330.61667725,0.00023943,2]
[321913414,1712617841747,-1500.0,0.00023955,2]
[321913415,1712617841757,-323.40851363,0.00023962,2]
[321913416,1712617841766,-300.0,0.00023963,2]
[321913417,1712617841775,-150.0,0.00023963,2]
[321913418,1712617841784,-300.0,0.00023963,2]
[321913419,1712617841793,-300.0,0.00023963,2]
[321913420,1712617841804,-150.0,0.00023963,2]
[321913421,1712617841814,-150.0,0.00023966,2]
[321913422,1712617841823,-206.4602802,0.00024,2]
[321913423,1712617841832,-365.10503971,0.00024,2]
[321913424,1712617841842,-150.0,0.00024,2]
[321913425,1712617841851,-150.0,0.00024024,2]
[321913426,1712617841860,-1500.0,0.00024046,2]
[321913427,1712617841870,-200.0,0.00024055,2]
[321913428,1712617841881,-150.0,0.00024064,2]
[321913429,1712617841892,-150.0,0.00024074,4]
[321913430,1712617841902,-150.0,0.00024074,4]
[321913431,1712617841913,-150.0,0.00024089,2]
[321913432,1712617841923,-471.040907,0.00024099,2]
[321913433,1712617841934,-1500.0,0.00024128,2]
[321913434,1712617841944,-784.29171298,0.00024141,4]
[321913435,1712617841955,-150.0,0.00024144,2]
[321913436,1712617841966,-150.0,0.00024148,2]
[321913437,1712617841977,-150.0,0.00024161,2]
[321913438,1712617841987,-150.0,0.00024167,2]
[321913439,1712617841997,-1089.97,0.00024174,2]
[321913440,1712617842007,-150.0,0.00024183,2]
[321913441,1712617842016,-151.25194137,0.00024186,2]
[321913442,1712617842026,-150.0,0.00024188,2]
[321913443,1712617842035,-471.040907,0.00024199,2]
[321913444,1712617842044,-1500.0,0.000242,2]
[321913445,1712617842053,-150.0,0.00024202,2]
[321913446,1712617842062,-150.0,0.00024218,2]
[321913447,1712617842071,-200.0,0.00024222,2]
[321913448,1712617842081,-1000.0,0.00024222,2]
[321913449,1712617842090,-500.0,0.00024222,2]
[321913450,1712617842099,-200.0,0.00024222,2]
[321913451,1712617842108,-5237.99014583,0.00024232,2]
[321913452,1712617842118,-150.0,0.00024236,2]
[321913453,1712617842127,-10033.04772914,0.0002424,2]
[321913454,1712617842136,-1333.7947476,0.00024245,2]
[321913455,1712617842145,-150.0,0.00024252,2]
[321913456,1712617842154,-150.0,0.00024262,2]
[321913457,1712617842163,-1500.0,0.00024263,2]
[321913458,1712617842173,-150.0,0.00024272,2]
[321913459,1712617842182,-300.0,0.00024281,2]
[321913460,1712617842191,-471.040907,0.00024299,2]
[321913461,1712617842200,-1000.0,0.000243,2]
[321913462,1712617842211,-150.0,0.00024312,2]
[321913463,1712617842220,-2208.16129134,0.00024329,2]
[321913464,1712617842230,-150.0,0.00024335,2]
[321913465,1712617842239,-150.0,0.00024335,2]
[321913466,1712617842248,-150.0,0.00024353,2]
[321913467,1712617842258,-150.0,0.00024362,2]
[321913468,1712617842267,-150.0,0.00024371,2]
[321913469,1712617842276,-300.0,0.00024373,2]
[321913470,1712617842285,-340.433286,0.00024384,2]
[321913471,1712617842294,-150.0,0.00024394,2]
[321913472,1712617842302,-471.040907,0.00024399,2]
[321913473,1712617842312,-645.45,0.000244,2]
[321913474,1712617842321,-7623.46713334,0.00024401,2]
[321913475,1712617842330,-2348.4024026,0.00024401,2]
[321913476,1712617842339,-300.0,0.00024414,2]
[321913477,1712617842349,-794.72613861,0.00024429,2]
[321913478,1712617842358,-3066.91373437,0.00024429,2]
[321913479,1712617842367,-788.37437772,0.00024429,2]
[321913480,1712617842377,-150.0,0.0002443,2]
[321913481,1712617842386,-150.0,0.00024455,2]
[321913482,1712617842396,-150.0,0.00024455,2]
[321913484,1712617842405,-150.0,0.0002448,2]
[321913485,1712617842414,-151.25194137,0.00024485,2]
[321913486,1712617842423,-471.040907,0.00024489,2]
[321913488,1712617842433,-150.0,0.00024489,4]
[321913490,1712617842441,-150.0,0.00024492,2]
[321913491,1712617842450,-150.0,0.00024496,2]
[321913493,1712617842461,-150.0,0.00024496,2]
[321913495,1712617842471,-150.0,0.00024496,2]
[321913497,1712617842481,-150.0,0.00024497,2]
[321913500,1712617842491,-471.040907,0.00024499,2]
[321913501,1712617842501,-150.0,0.000245,2]
[321913503,1712617842511,-150.0,0.000245,2]
[321913505,1712617842521,-150.0,0.000245,2]
[321913507,1712617842531,-481.0,0.000245,7]
[321913509,1712617842540,-1000.0,0.000245,2]
[321913512,1712617842549,-394.0,0.000245,2]
[321913515,1712617842558,-150.0,0.000245,2]
[321913518,1712617842567,-393.080236,0.000245,2]
[321913520,1712617842576,-187.0,0.000245,7]
[321913523,1712617842586,-1000.0,0.00024502,2]
[321913525,1712617842595,-150.01,0.00024506,2]
[321913528,1712617842605,-2529.1000354,0.00024506,2]
[321913531,1712617842614,-220.8677,0.00024507,2]
[321913534,1712617842624,-2000.0,0.00024508,2]
[321913537,1712617842633,-200.0,0.00024508,2]
[321913539,1712617842642,-2000.0,0.00024508,2]
[321913542,1712617842652,-200.0,0.00024508,2]
[321913544,1712617842661,-150.0,0.00024508,2]
[321913545,1712617842671,-2000.0,0.00024508,2]
[321913546,1712617842681,-200.0,0.00024508,2]
[321913547,1712617842691,-2000.0,0.00024508,2]
[321913548,1712617842701,-200.0,0.00024508,2]
[321913550,1712617842712,-1113.656515,0.00024508,2]
[321913552,1712617842722,-19565.52846859,0.00024508,2]
[321913554,1712617842732,-2227.31303,0.00024509,2]
[321913556,1712617842742,-213.45303589,0.00024509,2]
[321913558,1712617842751,-4953.0908996,0.0002451,2]
[321913560,1712617842761,-213.45303589,0.00024511,2]
[321913574,1712617842951,-1113.656515,0.00024511,2]
[321913575,1712617842966,-10908.94901206,0.00024512,2]
[321913576,1712617842976,-3178.54519902,0.00024514,2]
[321913577,1712617842986,-1745.21056213,0.00024515,2]
[321913578,1712617842995,-1670.48477249,0.00024515,2]
[321913579,1712617843007,-1745.21056213,0.00024516,2]
[321913580,1712617843016,-333.43461597,0.00024516,2]
[321913581,1712617843025,-150.0,0.00024516,2]
[321913582,1712617843035,-150.0,0.00024517,2]
[321913583,1712617843045,-190.41757073,0.00024518,2]
[321913584,1712617843054,-266.74769277,0.00024518,2]
[321913585,1712617843063,-150.0,0.00024518,2]
[321913586,1712617843073,-3178.54519902,0.0002452,2]
[321913587,1712617843082,-152.33405659,0.00024521,2]
[321913588,1712617843091,-152.33405659,0.00024521,2]
[321913589,1712617843101,-10908.94901206,0.00024523,2]
[321913590,1712617843111,-19565.52846859,0.00024523,2]
[321913591,1712617843120,-19565.52846859,0.00024523,2]
[321913592,1712617843129,-271.50371471,0.00024524,2]
[321913593,1712617843138,-1500.0,0.00024526,2]
[321913594,1712617843147,-1113.656515,0.00024528,2]
[321913595,1712617843157,-237.66236478,0.00024529,2]
[321913596,1712617843167,-19565.52846859,0.00024529,2]
[321913597,1712617843177,-150.0,0.0002453,2]
[321913598,1712617843186,-19565.52846859,0.00024532,2]
[321913599,1712617843196,-237.66236478,0.00024533,2]
[321913600,1712617843205,-333.43461597,0.00024534,2]
[321913601,1712617843214,-266.74769277,0.00024535,2]
[321913602,1712617843224,-237.66236478,0.00024535,2]
[321913603,1712617843232,-190.41757073,0.00024535,2]
[321913604,1712617843242,-19639.02598709,0.00024535,2]
[321913605,1712617843252,-13657.41576619,0.00024535,2]
[321913606,1712617843261,-1745.21056213,0.00024536,2]
[321913607,1712617843271,-3178.54519902,0.00024536,2]
[321913608,1712617843280,-3178.54519902,0.00024536,2]
[321913609,1712617843290,-19639.02598709,0.00024536,2]
[321913610,1712617843299,-1670.48477249,0.00024537,2]
[321913611,1712617843308,-2227.31303,0.00024538,2]
[321913612,1712617843318,-1113.656515,0.00024539,2]
[321913613,1712617843327,-271.50371471,0.00024539,2]
[321913614,1712617843338,-237.66236478,0.0002454,2]
[321913615,1712617843347,-19639.02598709,0.0002454,2]
[321913616,1712617843357,-1113.656515,0.0002454,2]
[321913617,1712617843366,-190.41757073,0.00024541,2]
[321913618,1712617843375,-333.43461597,0.00024541,2]
[321913619,1712617843385,-190.41757073,0.00024541,2]
[321913620,1712617843394,-19639.02598709,0.00024542,2]
[321913621,1712617843403,-1670.48477249,0.00024542,2]
[321913622,1712617843413,-1113.656515,0.00024543,2]
[321913623,1712617843422,-10908.94901206,0.00024544,2]
[321913624,1712617843431,-4953.0908996,0.00024544,2]
[321913625,1712617843441,-271.50371471,0.00024544,2]
[321913626,1712617843451,-271.50371471,0.00024544,2]
[321913627,1712617843461,-190.41757073,0.00024545,2]
[321913628,1712617843471,-152.33405659,0.00024545,2]
[321913629,1712617843480,-300.0,0.00024545,2]
[321913630,1712617843490,-10908.94901206,0.00024545,2]
[321913631,1712617843500,-13657.41576619,0.00024547,2]
[321913632,1712617843509,-1113.656515,0.00024548,2]
[321913633,1712617843519,-471.040906,0.00024549,2]
[321913634,1712617843528,-3178.54519902,0.0002455,2]
[321913635,1712617843538,-3178.54519902,0.00024551,2]
[321913636,1712617843547,-152.33405659,0.00024551,2]
[321913637,1712617843557,-152.33405659,0.00024552,2]
[321913638,1712617843566,-4953.0908996,0.00024552,2]
[321913639,1712617843575,-1670.48477249,0.00024552,2]
[321913640,1712617843584,-1670.48477249,0.00024553,2]
[321913641,1712617843594,-152.33405659,0.00024554,2]
[321913642,1712617843603,-19565.52846859,0.00024554,2]
[321913643,1712617843613,-1670.48477249,0.00024555,2]
[321913644,1712617843623,-19565.52846859,0.00024556,2]
[321913645,1712617843632,-3178.54519902,0.00024556,2]
[321913646,1712617843641,-2227.31303,0.00024556,2]
[321913647,1712617843651,-19565.52846859,0.00024556,2]
[321913648,1712617843660,-271.50371471,0.00024556,2]
[321913649,1712617843669,-19639.02598709,0.00024556,2]
[321913650,1712617843679,-3973.8715,0.00024557,2]
[321913651,1712617843688,-213.45303589,0.00024558,2]
[321913652,1712617843698,-4953.0908996,0.00024558,2]
[321913653,1712617843708,-1670.48477249,0.00024558,2]
[321913654,1712617843718,-1745.21056213,0.00024559,2]
[321913655,1712617843727,-1745.21056213,0.00024559,2]
[321913656,1712617843737,-333.43461597,0.00024559,2]
[321913657,1712617843748,-152.33405659,0.0002456,2]
[321913658,1712617843757,-266.74769277,0.0002456,2]
[321913659,1712617843767,-13657.41576619,0.00024562,2]
[321913660,1712617843777,-4953.0908996,0.00024562,2]
[321913661,1712617843786,-1670.48477249,0.00024563,2]
[321913662,1712617843807,-190.41757073,0.00024563,2]
[321913663,1712617843818,-19565.52846859,0.00024564,2]
[321913664,1712617843830,-213.45303589,0.00024564,2]
[321913665,1712617843840,-300.0,0.00024564,2]
[321913666,1712617843850,-1670.48477249,0.00024565,2]
[321913667,1712617843861,-1745.21056213,0.00024566,2]
[321913668,1712617843871,-13657.41576619,0.00024566,2]
[321913669,1712617843882,-10908.94901206,0.00024566,2]
[321913670,1712617843893,-13657.41576619,0.00024566,2]
[321913671,1712617843903,-271.50371471,0.00024567,2]
[321913672,1712617843913,-333.43461597,0.00024569,2]
[321913673,1712617843923,-3178.54519902,0.00024569,2]
[321913674,1712617843933,-237.66236478,0.00024569,2]
[321913675,1712617843943,-19639.02598709,0.00024573,2]
[321913676,1712617843953,-152.33405659,0.00024573,2]
[321913677,1712617843966,-1745.21056213,0.00024573,2]
[321913678,1712617843976,-323.40851363,0.00024574,2]
[321913679,1712617843987,-190.41757073,0.00024574,2]
[321913680,1712617843998,-190.41757073,0.00024575,2]
[321913681,1712617844008,-237.66236478,0.00024575,2]
[321913682,1712617844018,-19639.02598709,0.00024576,2]
[321913683,1712617844027,-213.45303589,0.00024576,2]
[321913684,1712617844038,-266.74769277,0.00024576,2]
[321913685,1712617844047,-237.66236478,0.00024577,2]
[321913686,1712617844057,-2227.31303,0.00024577,2]
[321913687,1712617844067,-13657.41576619,0.00024577,2]
[321913688,1712617844077,-271.50371471,0.00024578,2]
[321913689,1712617844087,-3178.54519902,0.00024578,2]
[321913690,1712617844096,-10908.94901206,0.00024579,2]
[321913691,1712617844106,-237.66236478,0.0002458,2]
[321913692,1712617844115,-10908.94901206,0.0002458,2]
[321913693,1712617844127,-150.0,0.00024581,2]
[321913694,1712617844138,-2227.31303,0.00024581,2]
[321913695,1712617844148,-190.41757073,0.00024582,2]
[321913696,1712617844158,-333.43461597,0.00024583,2]
[321913697,1712617844168,-213.45303589,0.00024583,2]
[321913698,1712617844178,-1113.656515,0.00024584,2]
[321913699,1712617844188,-13657.41576619,0.00024584,2]
[321913700,1712617844198,-333.43461597,0.00024585,2]
[321913701,1712617844209,-333.43461597,0.00024585,2]
[321913702,1712617844218,-213.45303589,0.00024585,2]
[321913703,1712617844229,-2227.31303,0.00024587,2]
[321913704,1712617844238,-266.74769277,0.00024588,2]
[321913705,1712617844248,-333.43461597,0.00024588,2]
[321913706,1712617844259,-2227.31303,0.00024588,2]
[321913707,1712617844269,-266.74769277,0.00024589,2]
[321913708,1712617844279,-266.74769277,0.00024589,2]
[321913709,1712617844289,-271.50371471,0.0002459,2]
[321913710,1712617844298,-2227.31303,0.00024592,2]
[321913711,1712617844308,-4953.0908996,0.00024593,2]
[321913712,1712617844317,-266.74769277,0.00024595,2]
[321913713,1712617844327,-1745.21056213,0.00024595,2]
[321913714,1712617844337,-266.74769277,0.00024595,2]
[321913715,1712617844346,-19639.02598709,0.00024596,2]
[321913716,1712617844356,-150.0,0.00024597,2]
[321913717,1712617844366,-4953.0908996,0.00024597,2]
[321913718,1712617844375,-4953.0908996,0.00024598,2]
[321913719,1712617844385,-237.66236478,0.00024598,2]
[321913720,1712617844395,-300.0,0.00024599,2]
[321913721,1712617844404,-1113.656515,0.00024599,2]
[321913722,1712617844414,-2219.59106736,0.000246,2]
[321913723,1712617844423,-1000.0,0.000246,2]
[321913724,1712617844432,-3049.74381,0.000246,2]